fUSD/lending_fUSD_20240104
["ID","MTS","AMOUNT","RATE_DAILY","PERIOD"]
[310221233,1704402711785,-500.0,0.0003589,2]
[310221234,1704402711794,-500.0,0.0003589,2]
[310221235,1704402711803,-500.0,0.0003589,2]
[310221236,1704402711814,-500.0,0.0003589,2]
[310221237,1704402711823,-362.93,0.0003589,2]
[310221238,1704402711833,-1282.1,0.0003589,2]
[310221239,1704402711843,-6408.05,0.0003589,2]
[310221240,1704402711853,-2129.19,0.0003589,2]
[310221241,1704402711863,-500.0,0.0003589,2]
[310221242,1704402711873,-1154.96,0.0003589,2]
[310221243,1704402711882,-531.04689842,0.0003589,2]
[310221244,1704402711891,-1729.84,0.0003589,2]
[310221245,1704402711901,-500.0,0.0003589,2]
[310221246,1704402711910,-500.0,0.0003589,2]
[310221247,1704402711919,-500.0,0.0003589,2]
[310221248,1704402711928,-913.73,0.0003589,2]
[310221249,1704402711937,-500.0,0.0003589,2]
[310221250,1704402711946,-500.0,0.0003589,2]
[310221251,1704402711956,-500.0,0.0003589,2]
[310221252,1704402711965,-4842.28,0.0003589,2]
[310221253,1704402711975,-2264.53,0.0003589,2]
[310221254,1704402711984,-500.0,0.0003589,2]
[310221255,1704402711995,-500.0,0.0003589,2]
[310221256,1704402712005,-500.0,0.0003589,2]
[310221257,1704402712015,-2281.55,0.0003589,2]
[310221258,1704402712025,-500.0,0.0003589,2]
[310221259,1704402712036,-500.0,0.0003589,2]
[310221260,1704402712046,-500.0,0.0003589,2]
[310221261,1704402712055,-500.0,0.0003589,2]
[310221262,1704402712064,-500.0,0.0003589,2]
[310221263,1704402712074,-500.0,0.0003589,2]
[310221264,1704402712083,-500.0,0.0003589,2]
[310221265,1704402712092,-539.42,0.0003589,2]
[310221266,1704402712102,-983.89,0.0003589,2]
[310221267,1704402712111,-500.0,0.0003589,2]
[310221268,1704402712146,-500.0,0.0003589,2]
[310221269,1704402712156,-500.0,0.0003589,2]
[310221270,1704402712165,-500.0,0.0003589,2]
[310221271,1704402712174,-174.1261698,0.0003589,2]
[310221272,1704402712184,-1154.67,0.0003589,2]
[310221273,1704402712193,-599.93,0.0003589,2]
[310221274,1704402712202,-616.54,0.0003589,2]
[310221275,1704402712211,-500.0,0.0003589,2]
[310221276,1704402712221,-1525.72,0.0003589,2]
[310221277,1704402712230,-613.63,0.0003589,2]
[310221278,1704402712240,-500.0,0.0003589,2]
[310221279,1704402712251,-637.93,0.0003589,2]
[310221280,1704402712260,-500.0,0.0003589,2]
[310221281,1704402712270,-500.0,0.0003589,2]
[310221282,1704402712279,-878.05,0.0003589,2]
[310221283,1704402712289,-500.0,0.0003589,2]
[310221284,1704402712299,-902.92,0.0003589,2]
[310221285,1704402712309,-500.0,0.0003589,2]
[310221286,1704402712319,-500.0,0.0003589,2]
[310221287,1704402712328,-500.0,0.0003589,2]
[310221288,1704402712338,-589.16,0.0003589,2]
[310221289,1704402712349,-500.0,0.0003589,2]
[310221290,1704402712359,-500.0,0.0003589,2]
[310221291,1704402712368,-500.0,0.0003589,2]
[310221292,1704402712378,-500.0,0.0003589,2]
[310221293,1704402712388,-500.0,0.0003589,2]
[310221294,1704402712398,-984.56,0.0003589,2]
[310221295,1704402712407,-500.0,0.0003589,2]
[310221296,1704402712417,-563.07,0.0003589,2]
[310221297,1704402712427,-500.0,0.0003589,2]
[310221298,1704402712437,-2695.69,0.0003589,2]
[310221299,1704402712446,-786.61,0.0003589,2]
[310221300,1704402712459,-1449.26,0.0003589,2]
[310221301,1704402712469,-6403.69,0.0003589,2]
[310221302,1704402712478,-565.56,0.0003589,2]
[310221303,1704402712488,-155.01856967,0.0003589,2]
[310221304,1704402712498,-348.01078256,0.0003589,2]
[310221305,1704402712509,-573.87,0.0003589,2]
[310221306,1704402712518,-500.0,0.0003589,2]
[310221307,1704402712529,-500.0,0.0003589,2]
[310221308,1704402712538,-750.62,0.0003589,2]
[310221309,1704402712548,-1503.12,0.0003589,2]
[310221310,1704402712558,-500.0,0.0003589,2]
[310221311,1704402712567,-500.0,0.0003589,2]
[310221312,1704402712578,-515.26,0.0003589,2]
[310221313,1704402712588,-500.0,0.0003589,2]
[310221314,1704402712598,-500.0,0.0003589,2]
[310221315,1704402712608,-500.0,0.0003589,2]
[310221316,1704402712617,-1352.57,0.0003589,2]
[310221317,1704402712627,-500.0,0.0003589,2]
[310221318,1704402712637,-4498.58,0.0003589,2]
[310221319,1704402712646,-1460.37,0.0003589,2]
[310221320,1704402712656,-647.5,0.0003589,2]
[310221321,1704402712666,-500.0,0.0003589,2]
[310221322,1704402712676,-500.0,0.0003589,2]
[310221323,1704402712686,-500.0,0.0003589,2]
[310221324,1704402712695,-895.41,0.0003589,2]
[310221325,1704402712705,-500.0,0.0003589,2]
[310221326,1704402712715,-500.0,0.0003589,2]
[310221327,1704402712725,-500.0,0.0003589,2]
[310221328,1704402712734,-500.0,0.0003589,2]
[310221329,1704402712744,-500.0,0.0003589,2]
[310221330,1704402712754,-761.85,0.0003589,2]
[310221331,1704402712765,-500.0,0.0003589,2]
[310221332,1704402712775,-500.0,0.0003589,2]
[310221333,1704402712785,-500.0,0.0003589,2]
[310221334,1704402712795,-2111.24,0.0003589,2]
[310221335,1704402712805,-500.0,0.0003589,2]
[310221336,1704402712815,-1731.46,0.0003589,2]
[310221337,1704402712824,-500.0,0.0003589,2]
[310221338,1704402712834,-928.81,0.0003589,2]
[310221339,1704402712844,-1123.24,0.0003589,2]
[310221340,1704402712854,-1937.57,0.0003589,2]
[310221341,1704402712864,-550.84,0.0003589,2]
[310221342,1704402712874,-500.0,0.0003589,2]
[310221343,1704402712884,-500.0,0.0003589,2]
[310221344,1704402712893,-500.0,0.0003589,2]
[310221345,1704402712903,-504.38,0.0003589,2]
[310221346,1704402712914,-1072.15,0.0003589,2]
[310221347,1704402712923,-729.82,0.0003589,2]
[310221348,1704402712934,-500.0,0.0003589,2]
[310221349,1704402712943,-500.0,0.0003589,2]
[310221350,1704402712953,-2257.92,0.0003589,2]
[310221351,1704402712963,-500.0,0.0003589,2]
[310221352,1704402712974,-1167.4,0.0003589,2]
[310221353,1704402712982,-831.43,0.0003589,2]
[310221354,1704402712992,-1414.25,0.0003589,2]
[310221355,1704402713002,-1040.38,0.0003589,2]
[310221356,1704402713012,-500.0,0.0003589,2]
[310221357,1704402713021,-500.0,0.0003589,2]
[310221358,1704402713031,-828.1,0.0003589,2]
[310221359,1704402713040,-500.0,0.0003589,2]
[310221360,1704402713049,-500.0,0.0003589,2]
[310221361,1704402713059,-500.0,0.0003589,2]
[310221362,1704402713068,-500.0,0.0003589,2]
[310221363,1704402713078,-500.0,0.0003589,2]
[310221364,1704402713087,-500.0,0.0003589,2]
[310221365,1704402713097,-678.15,0.0003589,2]
[310221366,1704402713106,-500.0,0.0003589,2]
[310221367,1704402713116,-500.0,0.0003589,2]
[310221368,1704402713126,-500.0,0.0003589,2]
[310221369,1704402713135,-500.0,0.0003589,2]
[310221370,1704402713145,-500.0,0.0003589,2]
[310221371,1704402713154,-1448.36,0.0003589,2]
[310221372,1704402713164,-151.0,0.0003589,7]
[310221373,1704402713174,-153.7,0.000359,3]
[310221374,1704402713183,-153.7,0.000359,3]
[310221375,1704402713192,-153.7,0.000359,3]
[310221376,1704402713202,-153.7,0.000359,3]
[310221377,1704402713211,-153.7,0.000359,3]
[310221378,1704402713222,-191.28567206,0.00035921,14]
[310221379,1704402713233,-151.36920845,0.00035928,14]
[310221380,1704402713243,-2000.0,0.00035949,2]
[310221381,1704402713253,-2000.0,0.00035949,2]
[310221382,1704402713263,-165.27,0.00035953,2]
[310221383,1704402713274,-151.5350356,0.00035998,14]
[310221384,1704402713284,-100000.0,0.00036,6]
[310221385,1704402713294,-151.0,0.00036,7]
[310221386,1704402713304,-1000.0,0.00036,2]
[310221387,1704402713314,-205.960194,0.00036,4]
[310221388,1704402713323,-760.92227324,0.00036,4]
[310221389,1704402713332,-2000.0,0.00036,4]
[310221390,1704402713341,-3692.86,0.00036,2]
[310221391,1704402713352,-5000.0,0.00036,2]
[310221392,1704402713361,-1000.0,0.00036,2]
[310221393,1704402713371,-5000.0,0.00036,2]
[310221394,1704402713380,-1000.0,0.00036,6]
[310221395,1704402713391,-264.44,0.00036003,2]
[310221396,1704402713400,-500.0,0.00036024,2]
[310221397,1704402713411,-5000.0,0.00036025,2]
[310221398,1704402713421,-5000.0,0.00036025,2]
[310221399,1704402713436,-191.28567206,0.00036041,14]
[310221400,1704402713445,-4446.10524259,0.00036048,11]
[310221401,1704402713455,-29734.94059041,0.00036048,11]
[310221402,1704402713465,-21027.28966232,0.00036048,11]
[310221403,1704402713475,-15791.08315152,0.00036048,11]
[310221404,1704402713484,-600.75091893,0.00036048,3]
[310221405,1704402713494,-5000.0,0.0003605,2]
[310221406,1704402713504,-5000.0,0.00036075,2]
[310221407,1704402713514,-5000.0,0.00036075,2]
[310221408,1704402713524,-151.765019,0.00036077,14]
[310221409,1704402713533,-5000.0,0.000361,2]
[310221410,1704402713543,-5000.0,0.00036125,2]
[310221411,1704402713553,-5000.0,0.0003615,2]
[310221412,1704402713563,-500.0,0.00036164,2]
[310221413,1704402713573,-500.0,0.00036164,2]
[310221414,1704402713583,-500.0,0.00036164,2]
[310221415,1704402713595,-554.75,0.00036164,2]
[310221416,1704402713605,-500.0,0.00036164,2]
[310221417,1704402713614,-500.0,0.00036164,2]
[310221418,1704402713624,-500.0,0.00036164,2]
[310221419,1704402713634,-500.0,0.00036164,2]
[310221420,1704402713643,-500.0,0.00036164,2]
[310221421,1704402713653,-500.0,0.00036164,2]
[310221422,1704402713663,-500.0,0.00036164,2]
[310221423,1704402713672,-500.0,0.00036164,2]
[310221424,1704402713682,-500.0,0.00036164,2]
[310221425,1704402713692,-500.0,0.00036164,2]
[310221426,1704402713701,-500.0,0.00036164,2]
[310221427,1704402713711,-191.51218489,0.00036164,2]
[310221428,1704402713721,-500.0,0.00036164,2]
[310221429,1704402713733,-500.0,0.00036164,2]
[310221430,1704402713742,-500.0,0.00036164,2]
[310221431,1704402713753,-500.0,0.00036164,2]
[310221432,1704402713765,-500.0,0.00036164,2]
[310221433,1704402713776,-500.0,0.00036164,2]
[310221434,1704402713787,-500.0,0.00036164,2]
[310221435,1704402713797,-638.52397574,0.00036164,2]
[310221436,1704402713806,-1160.79,0.00036164,2]
[310221437,1704402713815,-278.2,0.00036164,2]
[310221438,1704402713826,-500.0,0.00036164,2]
[310221439,1704402713835,-500.0,0.00036164,2]
[310221440,1704402713845,-738.09,0.00036164,2]
[310221441,1704402713854,-500.0,0.00036164,2]
[310221442,1704402713864,-500.0,0.00036164,2]
[310221443,1704402713873,-500.0,0.00036164,2]
[310221444,1704402713882,-807.57,0.00036164,2]
[310221445,1704402713891,-500.0,0.00036164,2]
[310221446,1704402713901,-500.0,0.00036164,2]
[310221447,1704402713910,-500.0,0.00036164,2]
[310221448,1704402713920,-500.0,0.00036164,2]
[310221449,1704402713930,-527.72,0.00036164,2]
[310221450,1704402713940,-687.6,0.00036164,2]
[310221451,1704402713950,-500.0,0.00036164,2]
[310221452,1704402713961,-500.0,0.00036164,2]
[310221453,1704402713971,-500.0,0.00036164,2]
[310221454,1704402713982,-500.0,0.00036164,2]
[310221455,1704402713992,-454.68,0.00036164,2]
[310221456,1704402714008,-500.0,0.00036164,2]
[310221457,1704402714018,-500.0,0.00036164,2]
[310221458,1704402714029,-500.0,0.00036164,2]
[310221459,1704402714039,-500.0,0.00036164,2]
[310221460,1704402714049,-500.0,0.00036164,2]
[310221461,1704402714059,-500.0,0.00036164,2]
[310221462,1704402714069,-602.44,0.00036164,2]
[310221463,1704402714079,-500.0,0.00036164,2]
[310221464,1704402714089,-660.7,0.00036164,2]
[310221465,1704402714099,-722.69,0.00036164,2]
[310221466,1704402714109,-598.95,0.00036164,2]
[310221467,1704402714119,-500.0,0.00036164,2]
[310221468,1704402714129,-541.66,0.00036164,2]
[310221469,1704402714139,-500.0,0.00036164,2]
[310221470,1704402714149,-500.0,0.00036164,2]
[310221471,1704402714159,-505.83,0.00036164,2]
[310221472,1704402714170,-500.0,0.00036164,2]
[310221473,1704402714180,-500.0,0.00036164,2]
[310221474,1704402714189,-500.0,0.00036164,2]
[310221475,1704402714199,-500.0,0.00036164,2]
[310221476,1704402714209,-500.0,0.00036164,2]
[310221477,1704402714220,-500.0,0.00036164,2]
[310221478,1704402714230,-500.0,0.00036164,2]
[310221479,1704402714239,-718.72,0.00036164,2]
[310221480,1704402714254,-680.79,0.00036164,2]
[310221481,1704402714264,-500.0,0.00036164,2]
[310221482,1704402714274,-500.0,0.00036164,2]
[310221483,1704402714284,-1621.27,0.00036164,2]
[310221484,1704402714293,-500.0,0.00036164,2]
[310221485,1704402714303,-500.0,0.00036164,2]
[310221486,1704402714313,-500.0,0.00036164,2]
[310221487,1704402714323,-738.09,0.00036164,2]
[310221488,1704402714333,-519.11,0.00036164,2]
[310221489,1704402714342,-356.62099551,0.00036164,2]
[310221490,1704402714352,-754.73,0.00036164,2]
[310221491,1704402714362,-578.29,0.00036164,2]
[310221492,1704402714372,-500.0,0.00036164,2]
[310221493,1704402714381,-500.0,0.00036164,2]
[310221494,1704402714391,-500.0,0.00036164,2]
[310221495,1704402714401,-500.0,0.00036164,2]
[310221496,1704402714411,-947.06,0.00036164,2]
[310221497,1704402714421,-1076.04,0.00036164,2]
[310221498,1704402714430,-500.0,0.00036164,2]
[310221499,1704402714439,-541.45,0.00036164,2]
[310221500,1704402714450,-519.94,0.00036164,2]
[310221501,1704402714460,-500.0,0.00036164,2]
[310221502,1704402714469,-570.54,0.00036164,2]
[310221503,1704402714480,-596.45,0.00036164,2]
[310221504,1704402714490,-917.54,0.00036164,2]
[310221505,1704402714502,-639.13,0.00036164,2]
[310221506,1704402714512,-500.0,0.00036164,2]
[310221507,1704402714522,-500.0,0.00036164,2]
[310221508,1704402714533,-642.46,0.00036164,2]
[310221509,1704402714706,-774.28,0.00036164,2]
[310221510,1704402714716,-500.0,0.00036164,2]
[310221511,1704402714725,-665.84,0.00036164,2]
[310221512,1704402714734,-500.0,0.00036164,2]
[310221513,1704402714745,-500.0,0.00036164,2]
[310221514,1704402714754,-500.0,0.00036164,2]
[310221515,1704402714765,-500.0,0.00036164,2]
[310221516,1704402714774,-500.0,0.00036164,2]
[310221517,1704402714784,-500.0,0.00036164,2]
[310221518,1704402714795,-564.52,0.00036164,2]
[310221519,1704402714805,-520.83,0.00036164,2]
[310221520,1704402714816,-1863.96,0.00036164,2]
[310221521,1704402714825,-500.0,0.00036164,2]
[310221522,1704402714835,-500.0,0.00036164,2]
[310221523,1704402714844,-533.03,0.00036164,2]
[310221524,1704402714854,-1044.47,0.00036164,2]
[310221525,1704402714864,-531.47,0.00036164,2]
[310221526,1704402714874,-564.43,0.00036164,2]
[310221527,1704402714884,-1039.05,0.00036164,2]
[310221528,1704402714893,-791.55,0.00036164,2]
[310221529,1704402714903,-1245.41,0.00036164,2]
[310221530,1704402714913,-757.45,0.00036164,2]
[310221531,1704402714922,-521.07,0.00036164,2]
[310221532,1704402714932,-162.01,0.00036164,2]
[310221533,1704402714941,-663.54,0.00036164,2]
[310221534,1704402714951,-988.41,0.00036164,2]
[310221535,1704402714960,-1253.45,0.00036164,2]
[310221536,1704402714968,-623.24,0.00036164,2]
[310221537,1704402714980,-1071.01,0.00036164,2]
[310221538,1704402714990,-500.0,0.00036164,2]
[310221539,1704402715001,-1080.17,0.00036164,2]
[310221540,1704402715010,-500.0,0.00036164,2]
[310221541,1704402715020,-500.0,0.00036164,2]
[310221542,1704402715031,-1443.74,0.00036164,2]
[310221543,1704402715040,-2123.54,0.00036164,2]
[310221544,1704402715050,-500.0,0.00036164,2]
[310221545,1704402715059,-500.0,0.00036164,2]
[310221546,1704402715068,-500.0,0.00036164,2]
[310221547,1704402715078,-500.0,0.00036164,2]
[310221548,1704402715088,-1276.68,0.00036164,2]
[310221549,1704402715097,-500.0,0.00036164,2]
[310221550,1704402715108,-500.0,0.00036164,2]
[310221551,1704402715118,-500.0,0.00036164,2]
[310221552,1704402715128,-500.0,0.00036164,2]
[310221553,1704402715137,-500.0,0.00036164,2]
[310221554,1704402715146,-500.0,0.00036164,2]
[310221555,1704402715155,-500.0,0.00036164,2]
[310221556,1704402715165,-2290.92,0.00036164,2]
[310221557,1704402715174,-500.0,0.00036164,2]
[310221558,1704402715183,-5464.43,0.00036164,2]
[310221559,1704402715193,-1286.86,0.00036164,2]
[310221560,1704402715202,-543.96,0.00036164,2]
[310221561,1704402715211,-623.16,0.00036164,2]
[310221562,1704402715221,-500.0,0.00036164,2]
[310221563,1704402715230,-1530.15,0.00036164,2]
[310221564,1704402715239,-2181.99,0.00036164,2]
[310221565,1704402715250,-500.0,0.00036164,2]
[310221566,1704402715260,-3262.68,0.00036164,2]
[310221567,1704402715269,-1391.97,0.00036164,2]
[310221568,1704402715279,-756.79,0.00036164,2]
[310221569,1704402715288,-618.7,0.00036164,2]
[310221570,1704402715298,-1812.71,0.00036164,2]
[310221571,1704402715308,-500.0,0.00036164,2]
[310221572,1704402715318,-500.0,0.00036164,2]
[310221573,1704402715327,-500.0,0.00036164,2]
[310221574,1704402715337,-927.7,0.00036164,2]
[310221575,1704402715347,-709.7,0.00036164,2]
[310221576,1704402715357,-7042.65,0.00036164,2]
[310221577,1704402715367,-500.0,0.00036164,2]
[310221578,1704402715377,-1742.56,0.00036164,2]
[310221579,1704402715386,-500.0,0.00036164,2]
[310221580,1704402715396,-500.0,0.00036164,2]
[310221581,1704402715406,-616.92,0.00036164,2]
[310221582,1704402715415,-500.0,0.00036164,2]
[310221583,1704402715425,-175.53394235,0.00036164,2]
[310221584,1704402715435,-910.81,0.00036164,2]
[310221585,1704402715445,-500.0,0.00036164,2]
[310221586,1704402715455,-500.0,0.00036164,2]
[310221587,1704402715464,-500.0,0.00036164,2]
[310221588,1704402715474,-500.0,0.00036164,2]
[310221589,1704402715484,-1009.55,0.00036164,2]
[310221590,1704402715496,-500.0,0.00036164,2]
[310221591,1704402715506,-1739.77,0.00036164,2]
[310221592,1704402715516,-500.0,0.00036164,2]
[310221593,1704402715526,-500.0,0.00036164,2]
[310221594,1704402715535,-500.0,0.00036164,2]
[310221595,1704402715545,-500.0,0.00036164,2]
[310221596,1704402715555,-500.0,0.00036164,2]
[310221597,1704402715564,-1282.1,0.00036164,2]
[310221598,1704402715574,-6408.05,0.00036164,2]
[310221599,1704402715584,-2129.19,0.00036164,2]
[310221600,1704402715594,-500.0,0.00036164,2]
[310221601,1704402715603,-1154.96,0.00036164,2]
[310221602,1704402715612,-1729.84,0.00036164,2]
[310221603,1704402715622,-500.0,0.00036164,2]
[310221604,1704402715631,-500.0,0.00036164,2]
[310221605,1704402715641,-500.0,0.00036164,2]
[310221606,1704402715650,-913.73,0.00036164,2]
[310221607,1704402715659,-500.0,0.00036164,2]
[310221608,1704402715669,-500.0,0.00036164,2]
[310221609,1704402715678,-500.0,0.00036164,2]
[310221610,1704402715687,-4842.28,0.00036164,2]
[310221611,1704402715697,-2264.53,0.00036164,2]
[310221612,1704402715706,-500.0,0.00036164,2]
[310221613,1704402715718,-500.0,0.00036164,2]
[310221614,1704402715728,-500.0,0.00036164,2]
[310221615,1704402715738,-2281.55,0.00036164,2]
[310221616,1704402715749,-500.0,0.00036164,2]
[310221617,1704402715758,-500.0,0.00036164,2]
[310221618,1704402715768,-500.0,0.00036164,2]
[310221619,1704402715779,-500.0,0.00036164,2]
[310221620,1704402715789,-500.0,0.00036164,2]
[310221621,1704402715799,-500.0,0.00036164,2]
[310221622,1704402715810,-500.0,0.00036164,2]
[310221623,1704402715822,-539.42,0.00036164,2]
[310221624,1704402715832,-983.89,0.00036164,2]
[310221625,1704402715842,-500.0,0.00036164,2]
[310221626,1704402715851,-500.0,0.00036164,2]
[310221627,1704402715861,-500.0,0.00036164,2]
[310221628,1704402715870,-500.0,0.00036164,2]
[310221629,1704402715880,-1154.67,0.00036164,2]
[310221630,1704402715890,-599.93,0.00036164,2]
[310221631,1704402715900,-616.54,0.00036164,2]
[310221632,1704402715910,-175.6,0.00036164,2]
[310221633,1704402715919,-1525.72,0.00036164,2]
[310221634,1704402715928,-613.63,0.00036164,2]
[310221635,1704402715937,-549.58634335,0.00036164,2]
[310221636,1704402715947,-637.93,0.00036164,2]
[310221637,1704402715956,-500.0,0.00036164,2]
[310221638,1704402715965,-500.0,0.00036164,2]
[310221639,1704402715975,-878.05,0.00036164,2]
[310221640,1704402715984,-500.0,0.00036164,2]
[310221641,1704402715994,-902.92,0.00036164,2]
[310221642,1704402716005,-500.0,0.00036164,2]
[310221643,1704402716013,-500.0,0.00036164,2]
[310221644,1704402716022,-500.0,0.00036164,2]
[310221645,1704402716032,-589.16,0.00036164,2]
[310221646,1704402716041,-408.99290706,0.00036164,2]
[310221647,1704402716051,-500.0,0.00036164,2]
[310221648,1704402716061,-500.0,0.00036164,2]
[310221649,1704402716071,-500.0,0.00036164,2]
[310221650,1704402716081,-500.0,0.00036164,2]
[310221651,1704402716090,-984.56,0.00036164,2]
[310221652,1704402716101,-500.0,0.00036164,2]
[310221653,1704402716110,-563.07,0.00036164,2]
[310221654,1704402716120,-500.0,0.00036164,2]
[310221655,1704402716130,-2695.69,0.00036164,2]
[310221656,1704402716139,-786.61,0.00036164,2]
[310221657,1704402716149,-1449.26,0.00036164,2]
[310221658,1704402716159,-6403.69,0.00036164,2]
[310221659,1704402716168,-565.56,0.00036164,2]
[310221660,1704402716178,-573.87,0.00036164,2]
[310221661,1704402716188,-500.0,0.00036164,2]
[310221662,1704402716197,-500.0,0.00036164,2]
[310221663,1704402716206,-750.62,0.00036164,2]
[310221664,1704402716217,-1503.12,0.00036164,2]
[310221665,1704402716226,-500.0,0.00036164,2]
[310221666,1704402716236,-500.0,0.00036164,2]
[310221667,1704402716248,-515.26,0.00036164,2]
[310221668,1704402716258,-500.0,0.00036164,2]
[310221669,1704402716267,-500.0,0.00036164,2]
[310221670,1704402716277,-500.0,0.00036164,2]
[310221671,1704402716286,-1352.57,0.00036164,2]
[310221672,1704402716296,-500.0,0.00036164,2]
[310221673,1704402716306,-4498.58,0.00036164,2]
[310221674,1704402716315,-1460.37,0.00036164,2]
[310221675,1704402716324,-647.5,0.00036164,2]
[310221676,1704402716334,-500.0,0.00036164,2]
[310221677,1704402716343,-500.0,0.00036164,2]
[310221678,1704402716353,-895.41,0.00036164,2]
[310221679,1704402716363,-500.0,0.00036164,2]
[310221680,1704402716372,-500.0,0.00036164,2]
[310221681,1704402716382,-500.0,0.00036164,2]
[310221682,1704402716392,-500.0,0.00036164,2]
[310221683,1704402716402,-500.0,0.00036164,2]
[310221684,1704402716412,-500.0,0.00036164,2]
[310221685,1704402716422,-761.85,0.00036164,2]
[310221686,1704402716432,-500.0,0.00036164,2]
[310221687,1704402716442,-500.0,0.00036164,2]
[310221688,1704402716452,-500.0,0.00036164,2]
[310221689,1704402716461,-2111.24,0.00036164,2]
[310221690,1704402716471,-500.0,0.00036164,2]
[310221691,1704402716480,-1731.46,0.00036164,2]
[310221692,1704402716490,-500.0,0.00036164,2]
[310221693,1704402716502,-928.81,0.00036164,2]
[310221694,1704402716512,-1123.24,0.00036164,2]
[310221695,1704402716522,-1937.57,0.00036164,2]
[310221696,1704402716531,-550.84,0.00036164,2]
[310221697,1704402716541,-500.0,0.00036164,2]
[310221698,1704402716550,-500.0,0.00036164,2]
[310221699,1704402716561,-500.0,0.00036164,2]
[310221700,1704402716571,-504.38,0.00036164,2]
[310221701,1704402716581,-1072.15,0.00036164,2]
[310221702,1704402716591,-729.82,0.00036164,2]
[310221703,1704402716600,-500.0,0.00036164,2]
[310221704,1704402716611,-500.0,0.00036164,2]
[310221705,1704402716621,-2257.92,0.00036164,2]
[310221706,1704402716631,-500.0,0.00036164,2]
[310221707,1704402716640,-1167.4,0.00036164,2]
[310221708,1704402716650,-831.43,0.00036164,2]
[310221709,1704402716659,-1414.25,0.00036164,2]
[310221710,1704402716669,-1040.38,0.00036164,2]
[310221711,1704402716679,-500.0,0.00036164,2]
[310221712,1704402716689,-500.0,0.00036164,2]
[310221713,1704402716698,-828.1,0.00036164,2]
[310221714,1704402716708,-500.0,0.00036164,2]
[310221715,1704402716717,-500.0,0.00036164,2]
[310221716,1704402716726,-500.0,0.00036164,2]
[310221717,1704402716735,-500.0,0.00036164,2]
[310221718,1704402716745,-500.0,0.00036164,2]
[310221719,1704402716755,-500.0,0.00036164,2]
[310221720,1704402716765,-678.15,0.00036164,2]
[310221721,1704402716775,-500.0,0.00036164,2]
[310221722,1704402716785,-500.0,0.00036164,2]
[310221723,1704402716795,-500.0,0.00036164,2]
[310221724,1704402716804,-500.0,0.00036164,2]
[310221725,1704402716814,-376.44769071,0.00036164,2]
[310221726,1704402716823,-1448.36,0.00036164,2]
[310221727,1704402716832,-341.20199791,0.00036164,2]
[310221728,1704402716841,-5000.0,0.00036175,2]
[310221729,1704402716851,-5000.0,0.0003619,3]
[310221730,1704402716860,-3701.90775914,0.000362,7]
[310221731,1704402717223,-288.11805248,0.000362,7]
[310221732,1704402717236,-579.81418838,0.000362,7]